bitfinex-derivatives/quotes_BTCF0:USTF0_20210109
["timestamp","ask_amount","ask_price","bid_price","bid_amount"]
[1610164577372,0.1569,40052.0,40051.0,0.13655209]
[1610164578276,3.8396,40052.0,40051.0,0.00022601]
[1610164578775,3.8396,40052.0,40037.0,2.9954]
[1610164578776,3.8278,40052.0,40038.0,0.01320338]
[1610164578978,3.6827,40052.0,40042.0,0.13632608]
[1610164579176,3.6827,40052.0,40051.0,0.00022603]
[1610164579377,3.6827,40052.0,40043.0,0.00022603]
[1610164579578,3.6827,40052.0,40051.0,0.00022603]
[1610164579877,3.6827,40052.0,40044.0,0.00022603]
[1610164580078,0.14149162,40044.0,40042.0,0.13632608]
[1610164580279,0.23019162,40044.0,40042.0,0.13632608]
[1610164580481,0.23019162,40044.0,40043.0,0.00022601]
[1610164580980,0.3665177,40044.0,40043.0,0.00022601]
[1610164581380,0.23019162,40044.0,40043.0,0.00022601]
[1610164581780,0.21839162,40044.0,40043.0,0.00022601]
[1610164582782,0.21839162,40044.0,40043.0,0.01319633]
[1610164583384,0.21839162,40044.0,40043.0,0.00022601]
[1610164583584,0.21839162,40044.0,40043.0,0.01319659]
[1610164584983,0.20659162,40044.0,40043.0,0.01319659]
[1610164587989,0.19479162,40044.0,40043.0,0.01319659]
[1610164590994,0.18309162,40044.0,40043.0,0.01319659]
[1610164593096,0.18309162,40044.0,40043.0,3.40819659]
[1610164594197,0.17119162,40044.0,40043.0,3.40819659]
[1610164595902,0.17119162,40044.0,40043.0,3.44041801]
[1610164597203,0.15939162,40044.0,40043.0,3.44041801]
[1610164599206,0.07069162,40044.0,40043.0,3.44041801]
[1610164599506,0.07069162,40044.0,40043.0,3.49578965]
[1610164600105,0.07069162,40044.0,40043.0,0.10078965]
[1610164600307,0.05889162,40044.0,40043.0,3.06308965]
[1610164600908,0.05889162,40044.0,40043.0,3.00771801]
[1610164602409,0.11416,40055.0,40043.0,4.50771801]
[1610164602609,0.1569,40064.0,40043.0,4.50771801]
[1610164602809,0.1569,40064.0,40044.0,0.04538823]
[1610164603010,0.1569,40064.0,40063.0,0.13632608]
[1610164603410,0.1451,40064.0,40063.0,0.13632608]
[1610164603609,0.1451,40064.0,40063.0,0.14951291]
[1610164605212,0.1451,40064.0,40063.0,0.1365519]
[1610164606411,0.1334,40064.0,40063.0,0.1365519]
[1610164608613,0.21845,40064.0,40063.0,0.1365519]
[1610164609615,0.20655,40064.0,40063.0,0.1365519]
[1610164612320,0.20655,40064.0,40063.0,0.14967251]
[1610164612520,0.19485,40064.0,40063.0,0.14967251]
[1610164615623,0.18305,40064.0,40063.0,0.14967251]
[1610164616022,0.18305,40064.0,40063.0,3.95057251]
[1610164616624,0.098,40064.0,40063.0,3.95057251]
[1610164616827,0.098,40064.0,40063.0,0.14967251]
[1610164617028,0.10814,40085.0,40084.0,3.8904]
[1610164617224,0.10814,40085.0,40084.0,4.02672608]
[1610164617425,0.10814,40085.0,40084.0,4.02695227]
[1610164618626,0.01422168,40114.0,40084.0,4.02695227]
[1610164619027,0.45139046,40116.0,40085.0,0.00022617]
[1610164619228,0.45139046,40116.0,40115.0,0.13632608]
[1610164619428,0.5875273,40117.0,40115.0,0.13632608]
[1610164620234,0.13632608,40117.0,40115.0,0.13632608]
[1610164621229,3.1231,40116.0,40115.0,0.13632608]
[1610164621431,3.1231,40116.0,40098.0,4.0485]
[1610164621630,2.9239,40102.0,40085.0,3.6664]
[1610164621830,2.9121,40102.0,40085.0,3.6664]
[1610164622031,3.03681,40102.0,40085.0,3.6664]
[1610164622232,3.03681,40102.0,40086.0,0.0002262]
[1610164623132,3.03681,40102.0,40098.0,0.13632608]
[1610164623331,0.12471,40102.0,40098.0,0.13632608]
[1610164624930,0.11291,40102.0,40098.0,0.13632608]
[1610164625131,0.13632608,40099.0,40098.0,0.13632608]
[1610164625933,0.13632608,40099.0,40098.0,0.13655231]
[1610164627836,0.10111,40102.0,40098.0,3.37325231]
[1610164628038,0.45091195,40109.0,40098.0,3.37325231]
[1610164628238,0.45091195,40109.0,40099.0,0.00022623]
[1610164628540,0.73828306,40112.0,40099.0,0.00022623]
[1610164628940,0.2874,40112.0,40099.0,0.00022623]
[1610164629139,0.13632608,40109.0,40099.0,0.00022623]
[1610164629339,0.13632608,40109.0,40098.0,3.37302608]
[1610164629541,0.13632608,40109.0,40098.0,0.13632608]
[1610164630843,0.13632608,40109.0,40099.0,0.0002262]
[1610164631044,0.12462608,40109.0,40099.0,0.0002262]
[1610164631346,0.13632608,40100.0,40098.0,0.13632608]
[1610164631546,0.23040608,40100.0,40098.0,0.13632608]
[1610164634051,0.21840608,40100.0,40098.0,0.13632608]
[1610164635856,0.21840608,40100.0,40099.0,0.0002262]
[1610164637060,0.20690608,40100.0,40099.0,0.0002262]
[1610164640263,0.19490608,40100.0,40099.0,0.0002262]
[1610164643267,0.18320608,40100.0,40099.0,0.0002262]
[1610164644570,0.09408,40100.0,40099.0,0.0002262]
[1610164644769,0.2874,40112.0,40099.0,0.0002262]
[1610164645370,0.42372608,40112.0,40111.0,0.13632608]
[1610164645774,0.42403122,40112.0,40111.0,0.13655228]
[1610164646271,0.41223122,40112.0,40111.0,0.13655228]
[1610164647874,0.41192608,40112.0,40111.0,0.13655228]
[1610164649375,0.40012608,40112.0,40111.0,0.13655228]
[1610164650476,3.28612608,40112.0,40111.0,0.0002262]
[1610164651076,3.28612608,40112.0,40100.0,0.01333683]
[1610164651276,3.15010512,40112.0,40111.0,0.00022617]
[1610164651677,3.1498,40112.0,40108.0,0.13632608]
[1610164651876,3.15010512,40112.0,40111.0,0.00022617]
[1610164652076,3.15010512,40112.0,40109.0,0.00022617]
[1610164652277,3.1498,40112.0,40111.0,0.00022617]
[1610164652476,3.1262,40112.0,40111.0,0.00022617]
[1610164652679,3.1262,40112.0,40108.0,0.13632608]
[1610164652680,0.2402,40112.0,40109.0,0.00022617]
[1610164652878,0.2402,40112.0,40111.0,0.00022617]
[1610164653079,0.2402,40112.0,40110.0,0.00022617]
[1610164653280,0.13632608,40111.0,40110.0,0.00022617]
[1610164653480,0.13632608,40111.0,40109.0,0.00022617]
[1610164653682,0.13632608,40111.0,40110.0,0.00022617]
[1610164654179,0.13632608,40111.0,40109.0,0.00022617]
[1610164654379,0.13632608,40111.0,40110.0,0.00022617]
[1610164654679,0.13632608,40111.0,40109.0,0.00022617]
[1610164655080,0.13632608,40111.0,40110.0,0.00022617]
[1610164655480,0.13632608,40111.0,40109.0,0.00022617]
[1610164655681,0.13572608,40111.0,40109.0,0.00022617]
[1610164655880,0.13572608,40111.0,40110.0,0.00022617]
[1610164656282,0.13572608,40111.0,40109.0,0.00022617]
[1610164656480,0.13572608,40111.0,40110.0,0.00022617]
[1610164656880,0.13572608,40111.0,40109.0,0.00022617]
[1610164657080,0.13572608,40111.0,40110.0,0.00022617]
[1610164657482,0.58955608,40111.0,40110.0,0.00022617]
[1610164657681,0.58955608,40111.0,40109.0,0.00022617]
[1610164657881,0.58955608,40111.0,40110.0,0.00022617]
[1610164658481,0.58955608,40111.0,40109.0,0.00022617]
[1610164658681,0.58955608,40111.0,40110.0,0.00022617]
[1610164658884,0.12392608,40111.0,40110.0,0.00022617]
[1610164659182,0.12392608,40111.0,40109.0,0.00022617]
[1610164659383,0.57800209,40111.0,40110.0,0.00022617]
[1610164659784,0.57800209,40111.0,40109.0,0.00022617]
[1610164659984,0.66894438,40111.0,40110.0,0.00022617]
[1610164660584,0.5781533,40111.0,40109.0,0.00022617]
[1610164660785,0.57845843,40111.0,40110.0,0.00022617]
[1610164660984,0.12392608,40111.0,40110.0,0.00022617]
[1610164661386,0.94402174,40111.0,40109.0,0.00022617]
[1610164661585,1.48918339,40111.0,40110.0,0.00022617]
[1610164661784,0.12392608,40111.0,40110.0,0.00022617]
[1610164661984,0.11172608,40111.0,40110.0,0.00022617]
[1610164662185,0.11172608,40111.0,40109.0,0.00022617]
[1610164662385,1.47714747,40111.0,40110.0,0.00022617]
[1610164662884,1.47714747,40111.0,40109.0,0.00022602]
[1610164663084,1.47714747,40111.0,40110.0,0.00022602]
[1610164663484,0.6569765,40111.0,40110.0,0.00022602]
[1610164663685,1.52034298,40111.0,40109.0,0.00022602]
[1610164663885,1.52064811,40111.0,40110.0,0.00022602]
[1610164664086,2.34094463,40111.0,40110.0,0.00022602]
[1610164664285,2.3406395,40111.0,40110.0,0.00022602]
[1610164664485,2.22921854,40111.0,40109.0,0.00022602]
[1610164664684,2.22921854,40111.0,40110.0,0.00022602]
[1610164664886,1.40892202,40111.0,40110.0,0.42052602]
[1610164665086,1.85101516,40111.0,40110.0,0.42052602]
[1610164665588,2.21676753,40111.0,40110.0,0.42052602]
[1610164665888,0.86336648,40111.0,40110.0,0.42052602]
[1610164666489,1.3180802,40111.0,40110.0,0.42052602]
[1610164666792,0.44306648,40111.0,40110.0,0.42052602]
[1610164667289,1.26367512,40111.0,40110.0,0.42052602]
[1610164667690,0.89792834,40111.0,40110.0,0.42052602]
[1610164668490,0.44306648,40111.0,40110.0,0.42052602]
[1610164668689,0.42976648,40111.0,40110.0,0.42052602]
[1610164668891,0.88490199,40111.0,40110.0,0.42052602]
[1610164669892,0.42976648,40111.0,40110.0,0.42052602]
[1610164670092,0.88504001,40111.0,40110.0,0.42052602]
[1610164671895,1.23835793,40111.0,40110.0,0.42052602]
[1610164672696,0.87264001,40111.0,40110.0,0.42052602]
[1610164672894,0.87264001,40111.0,40110.0,0.00022602]
[1610164673294,0.87264001,40111.0,40109.0,0.00022898]
[1610164673895,0.45482116,40110.0,40109.0,0.00022898]
[1610164674295,0.87204563,40111.0,40109.0,0.00022898]
[1610164674994,0.85984563,40111.0,40109.0,0.01427937]
[1610164676596,0.85984563,40111.0,40110.0,2.8292]
[1610164676797,0.40516648,40111.0,40110.0,2.8292]
[1610164676998,0.40516648,40111.0,40110.0,2.82942898]
[1610164677997,0.40516648,40111.0,40110.0,0.00022898]
[1610164678198,0.39336648,40111.0,40110.0,0.00022898]
[1610164678399,0.39336648,40111.0,40109.0,0.00022898]
[1610164678599,0.39336648,40111.0,40110.0,0.00022898]
[1610164678800,0.84594056,40111.0,40110.0,0.00022898]
[1610164679099,0.84594056,40111.0,40109.0,0.00022898]
[1610164679399,0.84594056,40111.0,40110.0,0.00022898]
[1610164679603,0.39336648,40111.0,40110.0,0.00022898]
[1610164679900,0.39336648,40111.0,40109.0,0.01428064]
[1610164680200,0.39336648,40111.0,40110.0,0.00022898]
[1610164680800,0.39336648,40111.0,40109.0,0.01428064]
[1610164681000,0.39336648,40111.0,40110.0,0.00022898]
[1610164681200,0.38166648,40111.0,40110.0,0.00022898]
[1610164681500,0.38166648,40111.0,40109.0,0.01428064]
[1610164681700,0.38166648,40111.0,40110.0,0.00022898]
[1610164682303,0.38166648,40111.0,40109.0,0.01428064]
[1610164682500,0.38166648,40111.0,40110.0,0.00022898]
[1610164683103,0.38166648,40111.0,40109.0,0.01428064]
[1610164683304,0.38166648,40111.0,40110.0,0.00022898]
[1610164683903,0.38166648,40111.0,40109.0,0.01428064]
[1610164684104,0.38166648,40111.0,40110.0,0.00022898]
[1610164684304,0.36976648,40111.0,40110.0,0.00022898]
[1610164684605,0.36976648,40111.0,40109.0,0.01428064]
[1610164685005,0.36976648,40111.0,40110.0,0.00022896]
[1610164685505,0.36976648,40111.0,40109.0,0.01428062]
[1610164685707,0.36976648,40111.0,40110.0,0.00022896]
[1610164686305,0.36976648,40111.0,40109.0,0.01405166]
[1610164686306,0.36976648,40111.0,40109.0,0.01428062]
[1610164686506,0.36976648,40111.0,40110.0,0.00022894]
[1610164687110,0.36976648,40111.0,40109.0,0.0142806]
[1610164687307,0.35826648,40111.0,40110.0,0.00022894]
[1610164687912,0.35826648,40111.0,40109.0,0.01428062]
[1610164688110,0.35826648,40111.0,40110.0,0.00022896]
[1610164688510,0.35826648,40111.0,40109.0,0.01428062]
[1610164689813,0.35826648,40111.0,40110.0,3.996]
[1610164690114,0.35826648,40111.0,40110.0,4.01027694]
[1610164690312,0.34616648,40111.0,40110.0,4.01027694]
[1610164693419,0.33436648,40111.0,40110.0,4.01027694]
[1610164695522,0.33436648,40111.0,40110.0,0.01427694]
[1610164695922,0.33436648,40111.0,40109.0,0.01427637]
[1610164696321,0.33436648,40111.0,40110.0,0.01427631]
[1610164696523,0.32276648,40111.0,40110.0,0.01427631]
[1610164696724,0.32276648,40111.0,40109.0,0.01427631]
[1610164696925,0.32276648,40111.0,40110.0,0.01427616]
[1610164697324,0.32276648,40111.0,40109.0,0.01427622]
[1610164697526,0.32276648,40111.0,40110.0,0.0142762]
[1610164698124,0.32276648,40111.0,40109.0,0.01427611]
[1610164698324,0.32276648,40111.0,40110.0,0.01427611]
[1610164698824,0.32276648,40111.0,40109.0,0.01427613]
[1610164699024,0.32276648,40111.0,40110.0,0.01427615]
[1610164699324,0.32276648,40111.0,40109.0,0.01427598]
[1610164699525,0.31096648,40111.0,40109.0,0.01427598]
[1610164699725,0.31096648,40111.0,40110.0,0.01427606]
[1610164700226,0.31096648,40111.0,40109.0,0.01427617]
[1610164700427,0.31096648,40111.0,40110.0,0.01427638]
[1610164700927,0.31096648,40111.0,40109.0,0.01427638]
[1610164701127,0.31096648,40111.0,40110.0,3.58777638]
[1610164702732,0.29876648,40111.0,40110.0,0.01427638]
[1610164703331,0.29876648,40111.0,40109.0,0.01427365]
[1610164703530,0.29876648,40111.0,40110.0,0.01427153]
[1610164704131,0.29876648,40111.0,40109.0,0.01426654]
[1610164704333,0.29876648,40111.0,40110.0,0.0142673]
[1610164704932,0.29876648,40111.0,40108.0,1.63632608]
[1610164704933,0.29876648,40111.0,40109.0,0.04803362]
[1610164705135,0.29876648,40111.0,40110.0,0.0142639]
[1610164705333,0.29876648,40111.0,40110.0,0.01403509]
[1610164705532,0.29876648,40111.0,40109.0,0.04803177]
[1610164705733,0.28696648,40111.0,40110.0,0.51426237]
[1610164705932,0.28696648,40111.0,40110.0,2.01426237]
[1610164706134,0.28696648,40111.0,40110.0,2.04802681]
[1610164708939,0.27506648,40111.0,40110.0,2.04802681]
[1610164709137,0.27506648,40111.0,40110.0,2.01426237]
[1610164711944,0.26356648,40111.0,40110.0,2.01426237]
[1610164712144,0.26356648,40111.0,40110.0,0.51426237]
[1610164713344,0.26356648,40111.0,40110.0,2.01426237]
[1610164714544,0.26356648,40111.0,40110.0,0.51426237]
[1610164715044,0.23916648,40111.0,40110.0,0.51426237]
[1610164715645,0.23916648,40111.0,40110.0,2.01426237]
[1610164716647,0.23916648,40111.0,40110.0,0.51426237]
[1610164717547,0.23916648,40111.0,40110.0,2.01426237]
[1610164718147,0.23916648,40111.0,40110.0,2.04801339]
[1610164718547,0.23856648,40111.0,40110.0,2.04801339]
[1610164719649,0.23856648,40111.0,40110.0,0.54801339]
[1610164721553,0.22646648,40111.0,40110.0,0.54801339]
[1610164721952,0.22646648,40111.0,40110.0,7.40971339]
[1610164722152,0.22646648,40111.0,40110.0,2.04801339]
[1610164723552,0.22646648,40111.0,40110.0,2.01426237]
[1610164724354,0.22646648,40111.0,40110.0,0.51426237]
[1610164724556,0.21486648,40111.0,40110.0,0.51426237]
[1610164724957,0.21486648,40111.0,40110.0,0.54792649]
[1610164725559,0.21486648,40111.0,40110.0,2.04792649]
[1610164727261,0.45080864,40165.0,40110.0,2.04792649]
[1610164727463,0.45079849,40168.0,40111.0,0.5]
[1610164727661,0.43889849,40168.0,40167.0,0.13632608]
[1610164727864,0.4506489,40173.0,40167.0,0.13632608]
[1610164728063,0.4506489,40173.0,40169.0,3.6665]
[1610164728264,0.54073759,40176.0,40169.0,3.6665]
[1610164728861,0.9058372,40177.0,40169.0,3.6665]
[1610164729268,0.54057805,40177.0,40169.0,3.6665]
[1610164729564,0.54041312,40178.0,40169.0,3.6665]
[1610164729764,0.54041312,40178.0,40176.0,0.13632608]
[1610164729965,0.90565457,40178.0,40176.0,0.13632608]
[1610164730365,0.00030468,40177.0,40176.0,0.13632608]
[1610164730668,0.89435925,40178.0,40176.0,0.13632608]
[1610164730870,0.13632608,40179.0,40176.0,0.13632608]
[1610164731468,0.00030468,40178.0,40176.0,0.13632608]
[1610164731868,0.08281468,40178.0,40176.0,0.13632608]
[1610164732269,0.00030468,40177.0,40176.0,0.13632608]
[1610164733771,0.07101468,40178.0,40176.0,0.13632608]
[1610164734374,0.07101468,40178.0,40177.0,3.8735]
[1610164734873,0.07131936,40178.0,40177.0,3.8735]
[1610164736875,0.07131936,40178.0,40176.0,0.13632608]
[1610164737074,0.05901936,40178.0,40176.0,0.13632608]
[1610164737275,0.00030468,40177.0,40176.0,0.13632608]
[1610164738074,0.05871468,40178.0,40176.0,0.13632608]
[1610164738275,0.2905,40182.0,40176.0,0.13632608]
[1610164739778,0.2905,40182.0,40181.0,0.13632608]
[1610164740178,0.2786,40182.0,40181.0,0.13632608]
[1610164741777,0.41492608,40182.0,40181.0,0.13632608]
[1610164742880,0.41492608,40182.0,40170.0,3.624]
[1610164743080,0.53415608,40182.0,40170.0,3.624]
[1610164743280,0.52225608,40182.0,40170.0,3.624]
[1610164743680,0.38593,40182.0,40175.0,0.13632608]
[1610164744480,0.38593,40182.0,40170.0,3.624]
[1610164745682,0.13632608,40171.0,40170.0,3.76032608]
[1610164745882,0.21825608,40171.0,40170.0,3.76032608]
[1610164746280,0.20645608,40171.0,40170.0,3.76032608]
[1610164746882,4.02645608,40171.0,40151.0,3.1133]
[1610164747082,0.20645608,40171.0,40123.0,0.5]
[1610164747281,2.9758,40158.0,40152.0,0.00022933]
[1610164747483,2.9758,40158.0,40139.0,4.0555]
[1610164747484,0.11277,40158.0,40139.0,4.0555]
[1610164747681,0.11277,40158.0,40156.0,0.13632608]
[1610164749684,0.67272608,40157.0,40156.0,0.13632608]
[1610164749884,0.67272608,40157.0,40145.0,3.4238]
[1610164750284,0.13632608,40157.0,40146.0,0.00022945]
[1610164750484,3.2061048,40156.0,40146.0,0.00022945]
[1610164750684,3.2061048,40156.0,40125.0,3.548]
[1610164750883,3.2058,40156.0,40147.0,0.00022945]
[1610164751085,3.2058,40156.0,40126.0,0.01449615]
[1610164751788,0.11495542,40158.0,40152.0,0.13632608]
[1610164752185,0.11495542,40158.0,40144.0,2.897]
[1610164752385,0.09987,40158.0,40097.0,0.5]
[1610164752588,3.6743,40142.0,40104.0,3.2339]
[1610164752786,3.6621,40142.0,40104.0,3.2339]
[1610164752987,3.6621,40142.0,40105.0,0.04860647]
[1610164753689,3.6621,40142.0,40141.0,0.13632608]
[1610164754089,0.13632608,40143.0,40141.0,0.13655555]
[1610164754489,0.13632608,40143.0,40142.0,0.00022947]
[1610164755790,0.12462608,40143.0,40142.0,0.00022947]
[1610164758194,0.45061982,40156.0,40142.0,0.00022947]
[1610164758195,0.46579145,40156.0,40142.0,0.00022947]
[1610164758797,0.2942887,40157.0,40142.0,0.00022947]
[1610164758997,0.2824887,40157.0,40148.0,3.6539]
[1610164759196,0.2791,40157.0,40148.0,3.6539]
[1610164759599,0.2791,40157.0,40149.0,0.00022942]
[1610164759797,0.2791,40157.0,40156.0,0.13632608]
[1610164760899,0.2791,40157.0,40156.0,0.13655542]
[1610164762101,0.2672,40157.0,40156.0,0.13655542]
[1610164764100,0.2672,40157.0,40156.0,0.13632608]
[1610164764902,0.2672,40157.0,40156.0,0.13655545]
[1610164765103,0.2555,40157.0,40156.0,0.13655545]
[1610164768212,0.2438,40157.0,40156.0,0.13655545]
[1610164768410,0.09987,40158.0,40156.0,0.13655545]
[1610164768611,0.09987,40158.0,40157.0,3.7305]
[1610164768810,0.08193,40171.0,40157.0,3.73072932]
[1610164769009,0.4534035,40172.0,40157.0,3.73072932]
[1610164769211,0.45339178,40174.0,40158.0,0.00022932]
[1610164769611,0.45333949,40176.0,40158.0,0.00022932]
[1610164769812,0.45333949,40176.0,40175.0,0.13632608]
[1610164770010,0.45331845,40177.0,40175.0,0.13632608]
[1610164770209,0.45331845,40177.0,40175.0,3.96431608]
[1610164770610,0.45331905,40178.0,40175.0,3.96431608]
[1610164770913,0.45327561,40177.0,40175.0,3.96431608]
[1610164771312,0.44087561,40177.0,40175.0,3.96431608]
[1610164771911,0.44087561,40177.0,40176.0,0.13632608]
[1610164772111,0.78393247,40182.0,40176.0,0.13632608]
[1610164772112,0.54387598,40180.0,40176.0,0.13632608]
[1610164772512,0.54387598,40180.0,40177.0,2.9458]
[1610164772913,0.9089889,40181.0,40177.0,2.9458]
[1610164774518,0.5438408,40181.0,40177.0,2.9458]
[1610164774920,0.9089912,40181.0,40177.0,2.9458]
[1610164775419,0.9089912,40181.0,40176.0,0.13632608]
[1610164775820,0.66308735,40182.0,40176.0,0.13632608]
[1610164776319,0.90901291,40181.0,40168.0,2.9973]
[1610164776820,0.54387059,40180.0,40168.0,2.9973]
[1610164777120,0.54386035,40181.0,40168.0,2.9973]
[1610164777421,0.53236035,40181.0,40168.0,2.9973]
[1610164777623,0.89751589,40181.0,40168.0,2.9973]
[1610164777823,0.89751589,40181.0,40180.0,0.13632608]
[1610164778025,0.53236035,40181.0,40180.0,0.13632608]
[1610164778424,0.66467687,40185.0,40180.0,0.13632608]
[1610164778725,0.2865,40194.0,40180.0,0.13632608]
[1610164778726,0.66462074,40186.0,40180.0,0.13632608]
[1610164779125,0.66460969,40187.0,40180.0,0.13632608]
[1610164779324,0.66460969,40187.0,40185.0,3.7897]
[1610164779726,0.66457138,40189.0,40185.0,3.7897]
[1610164779926,0.66457138,40189.0,40188.0,0.13632608]
[1610164780125,0.80075648,40192.0,40188.0,0.13632608]
[1610164780525,0.36509508,40191.0,40188.0,0.13632608]
[1610164780725,0.48387508,40191.0,40188.0,0.13632608]
[1610164781226,0.36509712,40190.0,40188.0,0.13632608]
[1610164781728,0.11878,40191.0,40188.0,0.13632608]
[1610164782329,0.36508074,40190.0,40188.0,0.13632608]
[1610164783130,0.11878,40191.0,40188.0,0.13632608]
[1610164783530,0.10688,40191.0,40188.0,0.13632608]
[1610164786037,0.12482608,40192.0,40188.0,0.13632608]
[1610164786736,0.11242608,40192.0,40188.0,0.13632608]
[1610164790140,0.09932608,40192.0,40188.0,0.13632608]
[1610164790942,0.14649995,40191.0,40188.0,0.13632608]
[1610164791242,0.26650995,40191.0,40188.0,0.13632608]
[1610164793245,0.25470995,40191.0,40188.0,0.13632608]
[1610164793645,0.25470995,40191.0,40148.0,0.03577818]
[1610164794043,0.25470995,40191.0,40185.0,0.13632608]
[1610164794244,0.36508476,40190.0,40185.0,0.13632608]
[1610164796048,0.13632608,40186.0,40185.0,0.13632608]
[1610164796249,0.12472608,40186.0,40185.0,0.13632608]
[1610164796850,0.12472608,40186.0,40185.0,0.13655885]
[1610164799052,0.1324081,40186.0,40185.0,0.13655885]
[1610164799352,0.1205081,40186.0,40185.0,0.13655885]
[1610164800253,0.11313066,40186.0,40185.0,0.13655885]
[1610164801053,0.478273,40186.0,40185.0,0.13632608]
[1610164801452,1.22834725,40186.0,40185.0,0.13632608]
[1610164802454,1.58191584,40186.0,40131.0,0.31539228]
[1610164802655,1.58191584,40186.0,40131.0,0.03579228]
[1610164802855,0.00030464,40185.0,40132.0,0.01564404]
[1610164803256,0.1170345,40173.0,40132.0,0.01564404]
[1610164803459,0.1170345,40173.0,40131.0,0.0156475]
[1610164803657,0.0076847,40171.0,40133.0,0.01564772]
[1610164804056,0.0076847,40171.0,40164.0,0.13632608]
[1610164804257,0.00030468,40170.0,40164.0,0.13632608]
[1610164804457,0.00030468,40170.0,40165.0,0.00023287]
[1610164804857,0.00798931,40170.0,40165.0,0.00023287]
[1610164805257,0.00768463,40170.0,40165.0,0.00023287]
[1610164805457,0.0076845,40171.0,40165.0,0.00023287]
[1610164805661,0.2682845,40172.0,40165.0,0.00023287]
[1610164805859,0.00030468,40170.0,40165.0,0.00023287]
[1610164806064,0.13632608,40166.0,40165.0,0.00023287]
[1610164806659,0.45218578,40171.0,40165.0,0.00023287]
[1610164806859,0.2682845,40172.0,40165.0,0.00023287]
[1610164807961,0.2682845,40172.0,40171.0,0.13632608]
[1610164808562,0.2682845,40172.0,40171.0,0.1365589]
[1610164808762,0.2564845,40172.0,40171.0,0.1365589]
[1610164809761,0.2564845,40172.0,40171.0,0.00023282]
[1610164809962,0.39281058,40172.0,40171.0,0.00023282]
[1610164810362,0.39281058,40172.0,40106.0,2.68329729]
[1610164810363,0.39281058,40172.0,40167.0,0.00023282]
[1610164810561,0.39281058,40172.0,40131.0,0.01541395]
[1610164810763,2.34523736,40172.0,40132.0,0.01541559]
[1610164811165,1.5,40163.0,40132.0,0.00023292]
[1610164811362,1.5,40163.0,40133.0,0.00023294]
[1610164811562,0.45263605,40157.0,40133.0,0.00023294]
[1610164811761,0.44083605,40157.0,40133.0,0.00023294]
[1610164811963,0.13632608,40134.0,40125.0,0.13632608]
[1610164812161,0.13632608,40134.0,40115.0,0.01542569]
[1610164812364,0.24325608,40134.0,40126.0,0.00023301]
[1610164812763,0.24325608,40134.0,40075.0,2.70869381]
[1610164812764,0.24325608,40134.0,40116.0,0.00023305]
[1610164812964,0.24325608,40134.0,40127.0,0.00023307]
[1610164813165,0.24325608,40134.0,40117.0,0.00023309]
[1610164813364,0.24325608,40134.0,40100.0,0.01543775]
[1610164813766,0.24325608,40134.0,40080.0,0.01567062]
[1610164813964,0.24325608,40134.0,40101.0,0.01567076]
[1610164814163,0.13632608,40125.0,40124.0,0.13632608]
[1610164814364,0.10378,40125.0,40124.0,0.13632608]
[1610164814765,0.09218,40125.0,40124.0,0.13632608]
[1610164817768,0.08068,40125.0,40124.0,0.13632608]
[1610164818771,0.08068,40125.0,40124.0,0.13655902]
[1610164819370,0.10693,40134.0,40124.0,0.13655902]
[1610164819770,0.54186624,40167.0,40125.0,0.00023291]
[1610164819973,0.66224752,40170.0,40125.0,0.00023291]
[1610164819974,0.54183961,40170.0,40163.0,0.13632608]
[1610164820372,0.5418777,40168.0,40163.0,0.13632608]
[1610164820572,0.5418777,40168.0,40123.0,0.5]
[1610164820774,0.54188278,40166.0,40108.0,0.60454]
[1610164820972,0.52998278,40166.0,40108.0,0.60454]
[1610164821174,0.52998278,40166.0,40124.0,0.00023292]
[1610164821372,1.5,40165.0,40109.0,0.01565345]
[1610164821574,1.5,40165.0,40108.0,0.60454]
[1610164821575,1.5,40165.0,40125.0,0.00023295]
[1610164821974,0.66146376,40159.0,40110.0,0.00023298]
[1610164822172,1.5,40158.0,40108.0,0.10454]
[1610164822372,0.66109749,40156.0,40111.0,0.00023303]
[1610164822572,0.66109749,40156.0,40109.0,0.00023305]
[1610164822774,0.65971356,40150.0,40109.0,0.00023305]
[1610164822972,0.74148356,40150.0,40109.0,0.00023305]
[1610164823173,0.65933786,40147.0,40080.0,0.01566929]
[1610164823372,1.5,40146.0,40080.0,0.01543621]
[1610164823573,0.65811096,40144.0,40080.0,0.01543621]
[1610164823773,1.5,40143.0,40081.0,0.00023311]
[1610164823974,0.64603158,40142.0,40080.0,0.01566932]
[1610164824175,1.5,40141.0,40098.0,0.13632608]
[1610164824374,1.59274,40141.0,40098.0,0.13632608]
[1610164824574,0.36566811,40140.0,40098.0,0.13632608]
[1610164824773,1.86566811,40140.0,40098.0,0.13632608]
[1610164825174,0.74503066,40139.0,40098.0,0.13632608]
[1610164825374,0.36566565,40139.0,40098.0,0.13632608]
[1610164826175,0.36566565,40139.0,40105.0,0.13632608]
[1610164826376,0.10207,40112.0,40105.0,0.13632608]
[1610164827177,0.08977,40112.0,40105.0,0.13632608]
[1610164828177,0.22609608,40112.0,40111.0,0.13632608]
[1610164830279,0.21399608,40112.0,40111.0,0.13632608]
[1610164831280,0.21399608,40112.0,40078.0,0.08234]
[1610164831682,0.07767,40112.0,40078.0,0.08234]
[1610164832084,0.13632608,40117.0,40111.0,0.13632608]
[1610164832684,0.2778,40146.0,40111.0,0.13632608]
[1610164832883,0.2984,40140.0,40111.0,0.13632608]
[1610164833284,0.39914,40140.0,40111.0,0.13632608]
[1610164834084,0.39914,40140.0,40085.0,0.5]
[1610164834085,0.13632608,40136.0,40134.0,0.13632608]
[1610164835286,0.13632608,40136.0,40100.0,0.5]
[1610164835485,0.13632608,40136.0,40093.0,0.5]
[1610164835887,0.13632608,40136.0,40081.0,0.5]
[1610164836087,0.11244,40140.0,40125.0,0.13632608]
[1610164836288,0.10084,40140.0,40125.0,0.13632608]
[1610164836887,0.0745,40139.0,40125.0,0.13632608]
[1610164837288,0.10084,40140.0,40125.0,0.13632608]
[1610164838089,0.13632608,40126.0,40125.0,0.13632608]
[1610164838488,0.23548608,40126.0,40125.0,0.13632608]
[1610164839388,0.22398608,40126.0,40125.0,0.13632608]
[1610164839989,0.09916,40126.0,40125.0,0.13632608]
[1610164842393,0.08756,40126.0,40125.0,0.13632608]
[1610164843794,0.13632608,40145.0,40125.0,0.13632608]
[1610164844194,0.08177,40150.0,40137.0,0.13632608]
[1610164844395,0.2851,40158.0,40137.0,0.13632608]
[1610164844799,0.00030482,40157.0,40137.0,0.13632608]
[1610164845395,0.27350482,40158.0,40137.0,0.13632608]
[1610164846196,0.13632608,40138.0,40137.0,0.13632608]
[1610164846397,0.21692608,40138.0,40137.0,0.13632608]
[1610164848703,0.20462608,40138.0,40137.0,0.13632608]
[1610164848904,0.20462608,40138.0,40098.0,0.5]
[1610164849504,0.20462608,40138.0,40099.0,0.0002331]
[1610164849704,0.20462608,40138.0,40099.0,0.01569477]
[1610164850106,0.0806,40138.0,40134.0,0.13632608]